fUST/lending_fUST_20250301
["ID","MTS","AMOUNT","RATE_DAILY","PERIOD"]
[354907319,1740811843775,-1182.87,0.00038794,2]
[354907320,1740811843785,-2053.76,0.00038794,2]
[354907321,1740811843795,-500.0,0.00038794,2]
[354907322,1740811843804,-151.616542,0.00038794,14]
[354907323,1740811843815,-695.97,0.00038794,2]
[354907324,1740811843825,-1685.76,0.00038794,2]
[354907325,1740811843835,-863.98,0.00038794,2]
[354907326,1740811843846,-2745.23,0.00038794,2]
[354907327,1740811843856,-500.0,0.00038794,2]
[354907328,1740811843866,-4158.89,0.00038794,2]
[354907329,1740811843876,-487.599296,0.00038794,14]
[354907330,1740811843886,-487.599296,0.00038794,14]
[354907331,1740811843897,-262.073995,0.00038794,14]
[354907332,1740811843907,-262.073995,0.00038794,14]
[354907333,1740811843917,-487.599296,0.00038794,14]
[354907334,1740811843927,-501.07904265,0.00038794,2]
[354907335,1740811843938,-487.599296,0.00038794,14]
[354907336,1740811843948,-262.073995,0.00038794,14]
[354907337,1740811843959,-500.0,0.00038794,2]
[354907338,1740811843969,-262.073995,0.00038794,14]
[354907339,1740811843979,-500.0,0.00038794,2]
[354907340,1740811843988,-266057.92,0.00038794,2]
[354907341,1740811843999,-2470.32,0.00038794,2]
[354907342,1740811844009,-379.18371342,0.00038794,2]
[354907344,1740811844023,-500.0,0.00038794,2]
[354907345,1740811844034,-880.160901,0.00038794,14]
[354907346,1740811844044,-880.160901,0.00038794,14]
[354907347,1740811844054,-2772.96,0.00038794,2]
[354907348,1740811844067,-880.160901,0.00038794,14]
[354907349,1740811844078,-880.160901,0.00038794,14]
[354907350,1740811844088,-1017.39,0.00038794,2]
[354907351,1740811844099,-500.0,0.00038794,2]
[354907352,1740811844109,-5344.3,0.00038794,2]
[354907353,1740811844118,-500.0,0.00038794,2]
[354907354,1740811844128,-500.0,0.00038794,2]
[354907355,1740811844138,-639.439738,0.00038794,14]
[354907356,1740811844148,-639.439738,0.00038794,14]
[354907357,1740811844158,-683.56,0.00038794,2]
[354907358,1740811844169,-639.439738,0.00038794,14]
[354907359,1740811844179,-639.439738,0.00038794,14]
[354907360,1740811844189,-695.86,0.00038794,2]
[354907361,1740811844199,-695.86,0.00038794,2]
[354907362,1740811844210,-695.86,0.00038794,2]
[354907363,1740811844220,-505.924967,0.00038794,14]
[354907364,1740811844231,-695.86,0.00038794,2]
[354907365,1740811844240,-695.99199601,0.00038794,2]
[354907366,1740811844250,-2630.52,0.00038794,2]
[354907367,1740811844260,-505.924967,0.00038794,14]
[354907368,1740811844270,-508.22,0.00038794,2]
[354907369,1740811844280,-500.0,0.00038794,2]
[354907370,1740811844290,-505.924967,0.00038794,14]
[354907371,1740811844300,-505.924967,0.00038794,14]
[354907372,1740811844310,-6875.96,0.00038794,2]
[354907373,1740811844320,-500.0,0.00038794,2]
[354907374,1740811844331,-500.0,0.00038794,2]
[354907375,1740811844341,-2896.699869,0.00038794,14]
[354907376,1740811844351,-2896.699869,0.00038794,14]
[354907377,1740811844361,-500.0,0.00038794,2]
[354907378,1740811844371,-500.0,0.00038794,2]
[354907379,1740811844381,-2896.699869,0.00038794,14]
[354907380,1740811844391,-500.0,0.00038794,2]
[354907381,1740811844400,-2896.699869,0.00038794,14]
[354907382,1740811844410,-500.0,0.00038794,2]
[354907383,1740811844420,-915.39,0.00038794,2]
[354907384,1740811844431,-500.0,0.00038794,2]
[354907385,1740811844441,-500.0,0.00038794,2]
[354907386,1740811844451,-500.0,0.00038794,2]
[354907387,1740811844460,-706.78,0.00038794,2]
[354907388,1740811844470,-997.14,0.00038794,2]
[354907389,1740811844481,-151.0,0.00038794,14]
[354907390,1740811844491,-151.0,0.00038794,14]
[354907391,1740811844501,-350.43520324,0.00038794,2]
[354907392,1740811844511,-500.0,0.00038794,2]
[354907393,1740811844521,-151.0,0.00038794,14]
[354907394,1740811844533,-15521.13,0.00038794,2]
[354907395,1740811844544,-500.0,0.00038794,2]
[354907396,1740811844554,-282.03434974,0.00038794,2]
[354907397,1740811844565,-500.0,0.00038794,2]
[354907398,1740811844575,-819.72,0.00038794,2]
[354907399,1740811844585,-500.0,0.00038794,2]
[354907400,1740811844596,-500.0,0.00038794,2]
[354907401,1740811844606,-970.91,0.00038794,2]
[354907402,1740811844616,-3646.95,0.00038794,2]
[354907403,1740811844626,-151.0,0.00038794,14]
[354907404,1740811844636,-151.0,0.00038794,14]
[354907405,1740811844646,-509.79858846,0.00038794,2]
[354907406,1740811844657,-151.0,0.00038794,14]
[354907407,1740811844669,-151.0,0.00038794,14]
[354907408,1740811844679,-818.66,0.00038794,2]
[354907409,1740811844700,-2463.49,0.00038794,2]
[354907410,1740811844713,-4045.94,0.00038794,2]
[354907411,1740811844725,-750.00246,0.00038794,14]
[354907412,1740811844737,-151.0,0.00038794,14]
[354907413,1740811844749,-750.00246,0.00038794,14]
[354907414,1740811844761,-151.0,0.00038794,14]
[354907415,1740811844772,-500.0,0.00038794,2]
[354907416,1740811844784,-750.00246,0.00038794,14]
[354907417,1740811844795,-750.00246,0.00038794,14]
[354907418,1740811844806,-500.0,0.00038794,2]
[354907419,1740811844817,-500.0,0.00038794,2]
[354907420,1740811844829,-300.0,0.00038794,120]
[354907421,1740811844840,-5000.0,0.00038795,120]
[354907422,1740811844851,-854.31,0.00038795,2]
[354907423,1740811844862,-501.23653082,0.00038795,2]
[354907424,1740811844873,-500.0,0.00038795,2]
[354907425,1740811844884,-505.98346316,0.00038795,2]
[354907426,1740811844895,-500.0,0.00038795,2]
[354907427,1740811844906,-500.0,0.00038795,2]
[354907428,1740811844918,-500.0,0.00038795,2]
[354907429,1740811844929,-500.0,0.00038795,2]
[354907430,1740811844940,-500.0,0.00038795,2]
[354907431,1740811844950,-990.59,0.00038795,2]
[354907432,1740811844961,-500.0,0.00038795,2]
[354907433,1740811844972,-500.0,0.00038795,2]
[354907434,1740811844983,-500.0,0.00038795,2]
[354907435,1740811844994,-500.0,0.00038795,2]
[354907436,1740811845005,-500.0,0.00038795,2]
[354907437,1740811845016,-552.52,0.00038795,2]
[354907438,1740811845031,-1335.56,0.00038795,2]
[354907439,1740811845042,-500.0,0.00038795,2]
[354907440,1740811845053,-655.98,0.00038795,2]
[354907441,1740811845064,-500.0,0.00038795,2]
[354907442,1740811845076,-500.0,0.00038795,2]
[354907443,1740811845088,-730.11,0.00038795,2]
[354907444,1740811845100,-500.0,0.00038795,2]
[354907445,1740811845113,-500.0,0.00038795,2]
[354907446,1740811845424,-1049.08,0.00038795,2]
[354907447,1740811845482,-2324.69,0.00038795,2]
[354907448,1740811845493,-1822.6,0.00038795,2]
[354907449,1740811845503,-500.0,0.00038795,2]
[354907450,1740811845512,-500.0,0.00038795,2]
[354907451,1740811845522,-500.0,0.00038795,2]
[354907452,1740811845532,-500.0,0.00038795,2]
[354907453,1740811845543,-500.0,0.00038795,2]
[354907454,1740811845553,-500.0,0.00038795,2]
[354907455,1740811845563,-500.0,0.00038795,2]
[354907456,1740811845573,-500.0,0.00038795,2]
[354907457,1740811845583,-500.0,0.00038795,2]
[354907458,1740811845593,-500.0,0.00038795,2]
[354907459,1740811845603,-500.0,0.00038795,2]
[354907460,1740811845613,-500.0,0.00038795,2]
[354907461,1740811845623,-500.0,0.00038795,2]
[354907462,1740811845633,-800.36,0.00038795,2]
[354907463,1740811845642,-500.0,0.00038795,2]
[354907464,1740811845652,-500.0,0.00038795,2]
[354907465,1740811845662,-500.0,0.00038795,2]
[354907466,1740811845673,-500.0,0.00038795,2]
[354907467,1740811845682,-500.0,0.00038795,2]
[354907468,1740811845692,-500.0,0.00038795,2]
[354907469,1740811845702,-500.0,0.00038795,2]
[354907470,1740811845711,-500.0,0.00038795,2]
[354907471,1740811845721,-500.0,0.00038795,2]
[354907472,1740811845731,-500.0,0.00038795,2]
[354907473,1740811845741,-500.0,0.00038795,2]
[354907474,1740811845750,-500.0,0.00038795,2]
[354907475,1740811845760,-500.0,0.00038795,2]
[354907476,1740811845770,-500.0,0.00038795,2]
[354907477,1740811845779,-500.0,0.00038795,2]
[354907478,1740811845789,-500.0,0.00038795,2]
[354907479,1740811845799,-500.0,0.00038795,2]
[354907480,1740811845809,-500.0,0.00038795,2]
[354907481,1740811845818,-500.0,0.00038795,2]
[354907482,1740811845829,-500.0,0.00038795,2]
[354907483,1740811845838,-841.87,0.00038795,2]
[354907484,1740811845848,-500.0,0.00038795,2]
[354907485,1740811845858,-500.0,0.00038795,2]
[354907486,1740811845868,-150.65190161,0.00038795,2]
[354907487,1740811845879,-500.0,0.00038795,2]
[354907488,1740811845888,-500.0,0.00038795,2]
[354907489,1740811845898,-1050.89,0.00038795,2]
[354907490,1740811845908,-500.0,0.00038795,2]
[354907491,1740811845918,-1599.92,0.00038795,2]
[354907492,1740811845927,-500.0,0.00038795,2]
[354907493,1740811845937,-500.0,0.00038795,2]
[354907494,1740811845946,-500.0,0.00038795,2]
[354907495,1740811845956,-486.869261,0.00038795,14]
[354907496,1740811845966,-392.36611113,0.00038795,2]
[354907497,1740811845976,-486.869261,0.00038795,14]
[354907498,1740811845986,-500.0,0.00038795,2]
[354907499,1740811845995,-500.0,0.00038795,2]
[354907500,1740811846005,-593.34,0.00038795,2]
[354907501,1740811846015,-500.0,0.00038795,2]
[354907502,1740811846029,-500.0,0.00038795,2]
[354907503,1740811846039,-500.0,0.00038795,2]
[354907504,1740811846049,-326.043892,0.00038795,14]
[354907505,1740811846059,-500.0,0.00038795,2]
[354907506,1740811846070,-501.47775902,0.00038795,2]
[354907507,1740811846080,-326.043892,0.00038795,14]
[354907508,1740811846090,-500.0,0.00038795,2]
[354907510,1740811846102,-151.0,0.00038795,14]
[354907511,1740811846113,-151.0,0.00038795,14]
[354907512,1740811846122,-500.0,0.00038795,2]
[354907513,1740811846133,-508.27184429,0.00038795,2]
[354907514,1740811846142,-500.0,0.00038795,2]
[354907515,1740811846152,-500.0,0.00038795,2]
[354907516,1740811846162,-500.0,0.00038795,2]
[354907517,1740811846172,-500.0,0.00038795,2]
[354907518,1740811846183,-841.42,0.00038795,2]
[354907519,1740811846193,-500.0,0.00038795,2]
[354907520,1740811846203,-500.0,0.00038795,2]
[354907521,1740811846212,-500.0,0.00038795,2]
[354907522,1740811846223,-500.0,0.00038795,2]
[354907523,1740811846232,-986.63,0.00038795,2]
[354907524,1740811846242,-500.0,0.00038795,2]
[354907525,1740811846252,-151.0,0.00038795,14]
[354907526,1740811846261,-151.0,0.00038795,14]
[354907527,1740811846271,-151.0,0.00038795,14]
[354907528,1740811846281,-256.434752,0.00038795,14]
[354907529,1740811846291,-500.0,0.00038795,2]
[354907530,1740811846300,-504.05068478,0.00038795,2]
[354907531,1740811846311,-151.0,0.00038795,14]
[354907532,1740811846321,-151.0,0.00038795,14]
[354907533,1740811846331,-151.0,0.00038795,14]
[354907534,1740811846341,-590.99541724,0.00038795,2]
[354907535,1740811846351,-500.0,0.00038795,2]
[354907536,1740811846360,-151.0,0.00038795,14]
[354907537,1740811846370,-151.0,0.00038795,14]
[354907538,1740811846380,-177.90514,0.00038795,14]
[354907539,1740811846390,-625.66,0.00038795,2]
[354907540,1740811846400,-500.0,0.00038795,2]
[354907541,1740811846409,-500.0,0.00038795,2]
[354907542,1740811846419,-500.0,0.00038795,2]
[354907543,1740811846428,-255.31704179,0.00038795,2]
[354907544,1740811846438,-500.0,0.00038795,2]
[354907545,1740811846448,-500.0,0.00038795,2]
[354907546,1740811846458,-500.0,0.00038795,2]
[354907547,1740811846468,-500.0,0.00038795,2]
[354907548,1740811846478,-500.0,0.00038795,2]
[354907549,1740811846488,-500.0,0.00038795,2]
[354907550,1740811846499,-500.0,0.00038795,2]
[354907551,1740811846509,-500.0,0.00038795,2]
[354907552,1740811846519,-500.0,0.00038795,2]
[354907553,1740811846529,-500.0,0.00038795,2]
[354907554,1740811846539,-513.46,0.00038795,2]
[354907555,1740811846548,-500.0,0.00038795,2]
[354907556,1740811846561,-500.0,0.00038795,2]
[354907557,1740811846571,-500.0,0.00038795,2]
[354907558,1740811846580,-500.0,0.00038795,2]
[354907559,1740811846590,-500.0,0.00038795,2]
[354907560,1740811846600,-500.0,0.00038795,2]
[354907561,1740811846610,-500.0,0.00038795,2]
[354907563,1740811846621,-1195.39,0.00038795,2]
[354907564,1740811846632,-500.0,0.00038795,2]
[354907566,1740811846642,-500.0,0.00038795,2]
[354907568,1740811846652,-500.0,0.00038795,2]
[354907570,1740811846662,-639.14,0.00038795,2]
[354907571,1740811846672,-151.0,0.00038795,14]
[354907572,1740811846682,-500.0,0.00038795,2]
[354907573,1740811846692,-151.0,0.00038795,14]
[354907574,1740811846702,-500.0,0.00038795,2]
[354907575,1740811846711,-151.0,0.00038795,14]
[354907576,1740811846722,-151.0,0.00038795,14]
[354907577,1740811846731,-500.0,0.00038795,2]
[354907578,1740811846741,-327.357506,0.00038795,14]
[354907579,1740811846752,-327.357506,0.00038795,14]
[354907580,1740811846773,-500.0,0.00038795,2]
[354907581,1740811846784,-500.0,0.00038795,2]
[354907582,1740811846796,-327.357506,0.00038795,14]
[354907583,1740811846807,-500.0,0.00038795,2]
[354907584,1740811846818,-327.357506,0.00038795,14]
[354907585,1740811846829,-500.0,0.00038795,2]
[354907586,1740811846839,-500.0,0.00038795,2]
[354907587,1740811846850,-500.0,0.00038795,2]
[354907588,1740811846861,-520.56,0.00038795,2]
[354907589,1740811846872,-151.0,0.00038795,14]
[354907590,1740811846883,-284.083628,0.00038795,14]
[354907591,1740811846893,-500.0,0.00038795,2]
[354907592,1740811846904,-500.0,0.00038795,2]
[354907593,1740811846914,-500.0,0.00038795,2]
[354907594,1740811846925,-500.0,0.00038795,2]
[354907595,1740811846936,-151.0,0.00038795,14]
[354907596,1740811846947,-764.61,0.00038795,2]
[354907597,1740811846957,-151.0,0.00038795,14]
[354907598,1740811846967,-500.0,0.00038795,2]
[354907599,1740811846978,-500.0,0.00038795,2]
[354907600,1740811846989,-500.0,0.00038795,2]
[354907601,1740811847000,-500.0,0.00038795,2]
[354907602,1740811847011,-500.0,0.00038795,2]
[354907603,1740811847024,-500.0,0.00038795,2]
[354907604,1740811847034,-500.0,0.00038795,2]
[354907605,1740811847045,-500.0,0.00038795,2]
[354907606,1740811847056,-500.0,0.00038795,2]
[354907607,1740811847068,-662.8,0.00038795,2]
[354907608,1740811847081,-500.0,0.00038795,2]
[354907609,1740811847092,-500.0,0.00038795,2]
[354907610,1740811847105,-500.0,0.00038795,2]
[354907611,1740811847116,-1110.06,0.00038795,2]
[354907612,1740811847126,-567.8561225,0.00038795,2]
[354907613,1740811847137,-500.0,0.00038795,2]
[354907614,1740811847148,-500.0,0.00038795,2]
[354907615,1740811847159,-500.0,0.00038795,2]
[354907616,1740811847170,-500.0,0.00038795,2]
[354907617,1740811847181,-1699.94,0.00038795,2]
[354907618,1740811847192,-500.0,0.00038795,2]
[354907619,1740811847202,-500.0,0.00038795,2]
[354907620,1740811847213,-500.0,0.00038795,2]
[354907621,1740811847223,-500.0,0.00038795,2]
[354907622,1740811847234,-1267.13,0.00038795,2]
[354907623,1740811847244,-500.0,0.00038795,2]
[354907624,1740811847254,-500.0,0.00038795,2]
[354907625,1740811847264,-500.0,0.00038795,2]
[354907626,1740811847274,-500.0,0.00038795,2]
[354907627,1740811847284,-500.0,0.00038795,2]
[354907628,1740811847295,-500.0,0.00038795,2]
[354907629,1740811847305,-500.0,0.00038795,2]
[354907630,1740811847316,-236.063299,0.00038795,14]
[354907631,1740811847327,-236.063299,0.00038795,14]
[354907632,1740811847338,-165.40084644,0.00038795,10]
[354907633,1740811847349,-200.0,0.00038795,2]
[354907634,1740811847360,-500.0,0.00038795,2]
[354907635,1740811847370,-236.063299,0.00038795,14]
[354907636,1740811847380,-500.0,0.00038795,2]
[354907637,1740811847390,-236.063299,0.00038795,14]
[354907638,1740811847401,-1818.91,0.00038795,2]
[354907639,1740811847412,-500.0,0.00038795,2]
[354907640,1740811847423,-500.0,0.00038795,2]
[354907641,1740811847433,-500.0,0.00038795,2]
[354907642,1740811847443,-500.0,0.00038795,2]
[354907643,1740811847453,-1376.030484,0.00038795,14]
[354907644,1740811847467,-1376.030484,0.00038795,14]
[354907645,1740811847477,-500.0,0.00038795,2]
[354907646,1740811847488,-500.0,0.00038795,2]
[354907647,1740811847498,-500.0,0.00038795,2]
[354907648,1740811847509,-1376.030484,0.00038795,14]
[354907649,1740811847519,-1376.030484,0.00038795,14]
[354907650,1740811847530,-500.0,0.00038795,2]
[354907651,1740811847540,-500.0,0.00038795,2]
[354907652,1740811847553,-554.32,0.00038795,2]
[354907653,1740811847572,-500.0,0.00038795,2]
[354907654,1740811847582,-478.32740067,0.00038795,2]
[354907655,1740811847592,-500.0,0.00038795,2]
[354907656,1740811847602,-500.0,0.00038795,2]
[354907657,1740811847612,-500.0,0.00038795,2]
[354907658,1740811847622,-500.0,0.00038795,2]
[354907659,1740811847632,-500.0,0.00038795,2]
[354907660,1740811847642,-277.89555097,0.00038795,2]
[354907661,1740811847652,-500.0,0.00038795,2]
[354907662,1740811847663,-500.0,0.00038795,2]
[354907663,1740811847674,-500.0,0.00038795,2]
[354907664,1740811847684,-500.0,0.00038795,2]
[354907665,1740811847694,-1297.64,0.00038795,2]
[354907666,1740811847704,-500.0,0.00038795,2]
[354907667,1740811847714,-500.0,0.00038795,2]
[354907668,1740811847724,-500.0,0.00038795,2]
[354907669,1740811847734,-500.0,0.00038795,2]
[354907670,1740811847744,-500.0,0.00038795,2]
[354907671,1740811847754,-500.0,0.00038795,2]
[354907672,1740811847765,-501.89073655,0.00038795,2]
[354907673,1740811847775,-500.0,0.00038795,2]
[354907674,1740811847785,-500.0,0.00038795,2]
[354907675,1740811847794,-684.42,0.00038795,120]
[354907676,1740811847804,-570.29,0.00038795,2]
[354907677,1740811847814,-500.0,0.00038795,2]
[354907678,1740811847824,-500.48703748,0.00038795,2]
[354907679,1740811847834,-375.375274,0.00038795,14]
[354907680,1740811847850,-375.375274,0.00038795,14]
[354907681,1740811847860,-500.0,0.00038795,2]
[354907682,1740811847870,-151.0,0.00038795,14]
[354907683,1740811847880,-500.0,0.00038795,2]
[354907684,1740811847890,-151.0,0.00038795,14]
[354907685,1740811847900,-500.0,0.00038795,2]
[354907686,1740811847910,-375.375274,0.00038795,14]
[354907687,1740811848051,-500.0,0.00038795,2]
[354907688,1740811848062,-375.375274,0.00038795,14]
[354907689,1740811848072,-600.75,0.00038795,2]
[354907690,1740811848081,-151.0,0.00038795,14]
[354907691,1740811848090,-500.0,0.00038795,2]
[354907692,1740811848103,-151.0,0.00038795,14]
[354907693,1740811848113,-432.309548,0.00038795,14]
[354907694,1740811848122,-500.0,0.00038795,2]
[354907695,1740811848132,-500.0,0.00038795,2]
[354907696,1740811848141,-1477.34,0.00038795,2]
[354907697,1740811848151,-432.309548,0.00038795,14]
[354907698,1740811848160,-500.0,0.00038795,2]
[354907699,1740811848170,-234.515658,0.00038795,14]
[354907700,1740811848180,-502.3335248,0.00038795,2]
[354907701,1740811848191,-234.515658,0.00038795,14]
[354907702,1740811848200,-500.0,0.00038795,2]
[354907703,1740811848210,-500.0,0.00038795,2]
[354907704,1740811848221,-234.515658,0.00038795,14]
[354907705,1740811848230,-234.515658,0.00038795,14]
[354907706,1740811848240,-500.0,0.00038795,2]
[354907707,1740811848250,-500.0,0.00038795,2]
[354907708,1740811848259,-500.0,0.00038795,2]
[354907709,1740811848268,-500.0,0.00038795,2]
[354907710,1740811848278,-842.686336,0.00038795,14]
[354907711,1740811848287,-245.81894417,0.00038795,2]
[354907712,1740811848297,-2241.07,0.00038795,2]
[354907713,1740811848307,-506.4195925,0.00038795,2]
[354907714,1740811848317,-842.686336,0.00038795,14]
[354907715,1740811848327,-500.0,0.00038795,2]
[354907716,1740811848336,-500.0,0.00038795,2]
[354907717,1740811848347,-500.0,0.00038795,2]
[354907718,1740811848357,-500.0,0.00038795,2]
[354907719,1740811848367,-500.0,0.00038795,2]
[354907720,1740811848377,-500.0,0.00038795,2]
[354907721,1740811848387,-500.0,0.00038795,2]
[354907722,1740811848397,-487.599296,0.00038795,14]
[354907723,1740811848407,-262.073995,0.00038795,14]
[354907724,1740811848416,-262.073995,0.00038795,14]
[354907725,1740811848426,-502.86284945,0.00038795,2]
[354907726,1740811848436,-500.0,0.00038795,2]
[354907727,1740811848446,-487.599296,0.00038795,14]
[354907728,1740811848456,-500.0,0.00038795,2]
[354907729,1740811848466,-500.0,0.00038795,2]
[354907730,1740811848478,-262.073995,0.00038795,14]
[354907731,1740811848488,-262.073995,0.00038795,14]
[354907732,1740811848498,-574.52,0.00038795,2]
[354907733,1740811848508,-500.0,0.00038795,2]
[354907734,1740811848518,-500.0,0.00038795,2]
[354907735,1740811848528,-649.05815658,0.00038795,2]
[354907736,1740811848538,-341.59628533,0.00038795,2]
[354907737,1740811848547,-500.27476744,0.00038795,2]
[354907738,1740811848556,-500.0,0.00038795,2]
[354907739,1740811848566,-871.43,0.00038795,2]
[354907740,1740811848576,-794.28,0.00038795,2]
[354907741,1740811848586,-880.160901,0.00038795,14]
[354907742,1740811848595,-500.0,0.00038795,2]
[354907743,1740811848606,-316.77224792,0.00038795,2]
[354907744,1740811848616,-880.160901,0.00038795,14]
[354907745,1740811848626,-500.0,0.00038795,2]
[354907746,1740811848635,-500.0,0.00038795,2]
[354907747,1740811848644,-500.0,0.00038795,2]
[354907748,1740811848654,-505.60939603,0.00038795,2]
[354907749,1740811848664,-1259.88,0.00038795,2]
[354907750,1740811848673,-500.0,0.00038795,2]
[354907751,1740811848683,-639.439738,0.00038795,14]
[354907752,1740811848693,-500.0,0.00038795,2]
[354907753,1740811848703,-639.439738,0.00038795,14]
[354907754,1740811848713,-1966.72,0.00038795,2]
[354907755,1740811848722,-505.924967,0.00038795,14]
[354907756,1740811848732,-500.0,0.00038795,2]
[354907757,1740811848742,-505.924967,0.00038795,14]
[354907758,1740811848752,-500.0,0.00038795,2]
[354907759,1740811848761,-500.0,0.00038795,2]
[354907760,1740811848771,-2896.699869,0.00038795,14]
[354907761,1740811848780,-2896.699869,0.00038795,14]
[354907762,1740811848791,-897.15,0.00038795,2]
[354907763,1740811848800,-232.18019004,0.00038795,2]
[354907764,1740811848810,-151.0,0.00038795,14]
[354907765,1740811848820,-151.0,0.00038795,14]
[354907766,1740811848830,-500.0,0.00038795,2]
[354907767,1740811848839,-1000.0,0.00038795,2]
[354907768,1740811848848,-500.0,0.00038795,2]
[354907769,1740811848858,-762.81,0.00038795,2]
[354907770,1740811848867,-151.0,0.00038795,14]
[354907771,1740811848877,-500.0,0.00038795,2]
[354907772,1740811848886,-500.0,0.00038795,2]
[354907773,1740811848895,-151.0,0.00038795,14]
[354907774,1740811848905,-151.0,0.00038795,14]
[354907775,1740811848915,-750.00246,0.00038795,14]
[354907776,1740811848925,-151.0,0.00038795,14]
[354907777,1740811848934,-750.00246,0.00038795,14]
[354907778,1740811848943,-151.0,0.00038795,14]
[354907779,1740811848953,-750.00246,0.00038795,14]
[354907780,1740811848962,-500.0,0.00038795,2]
[354907781,1740811848972,-750.00246,0.00038795,14]
[354907782,1740811848981,-500.0,0.00038795,2]
[354907783,1740811848990,-500.0,0.00038795,2]
[354907784,1740811849001,-151.0,0.000388,13]
[354907785,1740811849011,-151.0,0.000388,17]
[354907786,1740811849024,-151.0,0.000388,14]
[354907787,1740811849034,-151.0,0.000388,18]
[354907788,1740811849043,-151.0,0.000388,15]
[354907789,1740811849053,-151.0,0.000388,15]
[354907790,1740811849063,-151.0,0.000388,20]
[354907791,1740811849073,-151.0,0.000388,11]
[354907792,1740811849082,-151.0,0.000388,16]
[354907793,1740811849091,-151.0,0.000388,15]
[354907794,1740811849102,-151.0,0.000388,18]
[354907795,1740811849112,-151.0,0.000388,18]
[354907796,1740811849121,-151.0,0.000388,16]
[354907797,1740811849131,-151.0,0.000388,11]
[354907798,1740811849140,-151.0,0.000388,10]
[354907799,1740811849150,-151.0,0.000388,20]
[354907800,1740811849159,-151.0,0.000388,11]
[354907801,1740811849168,-151.0,0.000388,12]
[354907802,1740811849178,-151.0,0.000388,16]
[354907803,1740811849187,-500.0,0.00038821,2]
[354907804,1740811849196,-1826.34,0.00038821,5]
[354907805,1740811849206,-1664.15,0.00038821,2]
[354907806,1740811849215,-2301.74,0.00038821,2]
[354907807,1740811849224,-1601.23,0.00038821,2]
[354907808,1740811849233,-550.0,0.00038827,2]
[354907809,1740811849243,-500.0,0.00038873,5]
[354907810,1740811849253,-164.83393142,0.00038873,2]
[354907811,1740811849262,-880.160901,0.00038873,14]
[354907812,1740811849272,-880.160901,0.00038873,14]
[354907813,1740811849282,-639.439738,0.00038873,14]
[354907814,1740811849292,-639.439738,0.00038873,14]
[354907815,1740811849301,-505.924967,0.00038873,14]
[354907816,1740811849311,-505.924967,0.00038873,14]
[354907817,1740811849321,-2896.699869,0.00038873,14]
[354907818,1740811849331,-2896.699869,0.00038873,14]
[354907819,1740811849341,-605.0,0.00038882,2]
[354907820,1740811849351,-500.0,0.00038886,2]
[354907821,1740811849360,-500.0,0.00038886,2]
[354907822,1740811849379,-500.0,0.00038886,2]
[354907823,1740811849390,-500.0,0.00038886,2]
[354907824,1740811849400,-500.0,0.00038886,2]